fUSD/lending_fUSD_20250217
["ID","MTS","AMOUNT","RATE_DAILY","PERIOD"]
[353430378,1739824271832,-500.0,0.00015095,2]
[353430379,1739824271841,-200.0,0.00015095,2]
[353430380,1739824271850,-590.81,0.00015095,2]
[353430381,1739824271860,-577.67,0.00015095,2]
[353430382,1739824271869,-1001.9,0.00015095,2]
[353430383,1739824271879,-587.36,0.00015095,2]
[353430384,1739824271889,-1071.78,0.00015095,2]
[353430385,1739824271899,-977.2,0.00015095,2]
[353430386,1739824271909,-909.38,0.00015095,2]
[353430387,1739824271918,-773.35,0.00015095,2]
[353430388,1739824271927,-500.0,0.00015095,2]
[353430389,1739824271938,-599.87,0.00015095,2]
[353430390,1739824271948,-1025.81,0.00015095,2]
[353430391,1739824271957,-1111.81,0.00015095,2]
[353430392,1739824271966,-683.66,0.00015095,2]
[353430393,1739824271976,-500.0,0.00015095,2]
[353430394,1739824271985,-1058.99,0.00015095,2]
[353430395,1739824271995,-500.0,0.00015095,2]
[353430396,1739824272006,-765.72,0.00015095,2]
[353430397,1739824272016,-1329.95,0.00015095,2]
[353430398,1739824272026,-500.0,0.00015095,2]
[353430399,1739824272035,-552.86,0.00015095,2]
[353430400,1739824272044,-25687.61984688,0.000151,2]
[353430401,1739824272053,-500.0,0.00015113,2]
[353430402,1739824272063,-790.44,0.00015133,2]
[353430403,1739824272073,-150.0,0.00015141,2]
[353430404,1739824272083,-700.0,0.00015174,2]
[353430405,1739824272093,-500.0,0.00015175,2]
[353430406,1739824272103,-500.0,0.00015175,2]
[353430407,1739824272112,-295.10775836,0.00015175,2]
[353430408,1739824272122,-500.0,0.00015175,2]
[353430409,1739824272131,-273.8,0.00015175,2]
[353430410,1739824272140,-500.0,0.00015175,2]
[353430411,1739824272150,-567.94,0.00015175,2]
[353430412,1739824272159,-500.0,0.00015175,2]
[353430413,1739824272168,-647.34,0.00015175,2]
[353430414,1739824272178,-983.87,0.00015175,2]
[353430415,1739824272187,-685.53,0.00015175,2]
[353430416,1739824272196,-795.398462,0.00015175,2]
[353430417,1739824272205,-816.26,0.00015175,2]
[353430418,1739824272214,-743.63,0.00015175,2]
[353430419,1739824272223,-670.47,0.00015175,2]
[353430420,1739824272233,-591.42,0.00015175,2]
[353430421,1739824272242,-654.54,0.00015175,2]
[353430422,1739824272252,-732.62,0.00015175,2]
[353430423,1739824272262,-971.37,0.00015175,2]
[353430424,1739824272273,-567.58,0.00015175,2]
[353430425,1739824272283,-1065.05,0.00015175,2]
[353430426,1739824272293,-670.65,0.00015175,2]
[353430427,1739824272303,-876.32,0.00015175,2]
[353430428,1739824272313,-548.070799,0.00015175,2]
[353430429,1739824272323,-1119.09,0.00015175,2]
[353430430,1739824272332,-500.0,0.00015175,2]
[353430431,1739824272342,-975.56,0.00015175,2]
[353430432,1739824272353,-500.0,0.00015175,2]
[353430433,1739824272365,-1251.34,0.00015175,2]
[353430434,1739824272376,-513.1,0.00015175,2]
[353430435,1739824272387,-755.73,0.00015175,2]
[353430436,1739824272397,-2432.3,0.00015175,2]
[353430437,1739824272407,-617.48,0.00015175,2]
[353430438,1739824272417,-980.53,0.00015175,2]
[353430439,1739824272427,-1151.84,0.00015175,2]
[353430440,1739824272438,-651.63,0.00015175,2]
[353430441,1739824272448,-1462.81,0.00015175,2]
[353430442,1739824272458,-842.52,0.00015175,2]
[353430443,1739824272635,-500.0,0.00015175,2]
[353430444,1739824272647,-934.89,0.00015175,2]
[353430445,1739824272657,-566.1,0.00015175,2]
[353430446,1739824272666,-985.31,0.00015175,2]
[353430447,1739824272676,-628.67,0.00015175,2]
[353430448,1739824272685,-500.0,0.00015175,2]
[353430449,1739824272694,-500.0,0.00015175,2]
[353430450,1739824272703,-500.0,0.00015175,2]
[353430451,1739824272712,-890.88,0.00015175,2]
[353430452,1739824272722,-500.0,0.00015175,2]
[353430453,1739824272731,-500.0,0.00015176,2]
[353430454,1739824272740,-500.0,0.00015176,2]
[353430455,1739824272749,-566.08,0.00015176,2]
[353430456,1739824272759,-661.86,0.00015176,2]
[353430457,1739824272769,-500.0,0.00015176,2]
[353430458,1739824272779,-631.5,0.00015176,2]
[353430459,1739824272790,-500.0,0.00015178,2]
[353430460,1739824272800,-590.81,0.00015178,2]
[353430461,1739824272810,-577.67,0.00015178,2]
[353430462,1739824272819,-1001.9,0.00015178,2]
[353430463,1739824272830,-587.36,0.00015178,2]
[353430464,1739824272840,-1071.78,0.00015178,2]
[353430465,1739824272851,-977.2,0.00015178,2]
[353430466,1739824272863,-909.38,0.00015178,2]
[353430467,1739824272873,-773.35,0.00015178,2]
[353430468,1739824272886,-500.0,0.00015178,2]
[353430469,1739824272896,-599.87,0.00015178,2]
[353430470,1739824272906,-1025.81,0.00015178,2]
[353430471,1739824272915,-1111.81,0.00015178,2]
[353430472,1739824272924,-683.66,0.00015178,2]
[353430473,1739824272934,-583.56964858,0.00015178,2]
[353430474,1739824272943,-1058.99,0.00015178,2]
[353430475,1739824272952,-500.0,0.00015178,2]
[353430476,1739824272962,-765.72,0.00015178,2]
[353430477,1739824272972,-1329.95,0.00015178,2]
[353430478,1739824272981,-500.0,0.00015178,2]
[353430479,1739824272991,-552.86,0.00015178,2]
[353430480,1739824273001,-1997.0,0.00015202,2]
[353430481,1739824273011,-504.57,0.00015204,2]
[353430482,1739824273020,-500.0,0.00015213,2]
[353430483,1739824273029,-795.398462,0.00015257,2]
[353430484,1739824273039,-816.26,0.00015257,2]
[353430485,1739824273048,-591.42,0.00015257,2]
[353430486,1739824273058,-732.62,0.00015257,2]
[353430487,1739824273068,-567.58,0.00015257,2]
[353430488,1739824273084,-670.65,0.00015257,2]
[353430489,1739824273094,-876.32,0.00015257,2]
[353430490,1739824273103,-548.070799,0.00015257,2]
[353430491,1739824273113,-975.56,0.00015257,2]
[353430492,1739824273123,-500.0,0.00015257,2]
[353430493,1739824273132,-513.1,0.00015257,2]
[353430494,1739824273142,-2432.3,0.00015257,2]
[353430495,1739824273151,-617.48,0.00015257,2]
[353430496,1739824273161,-1151.84,0.00015257,2]
[353430497,1739824273171,-651.63,0.00015257,2]
[353430498,1739824273181,-1462.81,0.00015257,2]
[353430499,1739824273191,-934.89,0.00015257,2]
[353430500,1739824273201,-566.1,0.00015257,2]
[353430501,1739824273210,-985.31,0.00015257,2]
[353430502,1739824273220,-628.67,0.00015257,2]
[353430503,1739824273230,-500.0,0.00015257,2]
[353430504,1739824273239,-890.88,0.00015257,2]
[353430505,1739824273249,-500.0,0.00015258,2]
[353430506,1739824273259,-500.0,0.00015258,2]
[353430507,1739824273269,-645.39166652,0.00015258,2]
[353430508,1739824273279,-500.0,0.00015258,2]
[353430509,1739824273289,-567.94,0.00015258,2]
[353430510,1739824273300,-500.0,0.00015258,2]
[353430511,1739824273309,-647.34,0.00015258,2]
[353430512,1739824273319,-983.87,0.00015258,2]
[353430513,1739824273329,-685.53,0.00015258,2]
[353430514,1739824273339,-743.63,0.00015258,2]
[353430515,1739824273349,-670.47,0.00015258,2]
[353430516,1739824273358,-654.54,0.00015258,2]
[353430517,1739824273371,-971.37,0.00015258,2]
[353430518,1739824273381,-1065.05,0.00015258,2]
[353430519,1739824273392,-1119.09,0.00015258,2]
[353430520,1739824273401,-500.0,0.00015258,2]
[353430521,1739824273412,-1251.34,0.00015258,2]
[353430522,1739824273422,-755.73,0.00015258,2]
[353430523,1739824273431,-980.53,0.00015258,2]
[353430524,1739824273440,-842.52,0.00015258,2]
[353430525,1739824273451,-500.0,0.00015258,2]
[353430526,1739824273460,-500.0,0.00015258,2]
[353430527,1739824273469,-500.0,0.00015258,2]
[353430528,1739824273479,-500.0,0.00015258,2]
[353430529,1739824273488,-500.0,0.00015259,2]
[353430530,1739824273498,-500.0,0.00015259,2]
[353430531,1739824273507,-566.08,0.00015259,2]
[353430532,1739824273518,-661.86,0.00015259,2]
[353430533,1739824273527,-500.0,0.00015259,2]
[353430534,1739824273536,-631.5,0.00015259,2]
[353430535,1739824273545,-500.0,0.0001526,2]
[353430536,1739824273555,-590.81,0.0001526,2]
[353430537,1739824273564,-577.67,0.0001526,2]
[353430538,1739824273573,-1001.9,0.0001526,2]
[353430539,1739824273582,-587.36,0.0001526,2]
[353430540,1739824273591,-1071.78,0.0001526,2]
[353430541,1739824273600,-977.2,0.0001526,2]
[353430542,1739824273610,-909.38,0.0001526,2]
[353430543,1739824273619,-773.35,0.0001526,2]
[353430544,1739824273628,-500.0,0.0001526,2]
[353430545,1739824273638,-599.87,0.0001526,2]
[353430546,1739824273647,-1111.81,0.0001526,2]
[353430547,1739824273656,-1025.81,0.0001526,2]
[353430548,1739824273665,-683.66,0.0001526,2]
[353430549,1739824273674,-1058.99,0.0001526,2]
[353430550,1739824273684,-368.70091567,0.0001526,2]
[353430551,1739824273693,-765.72,0.0001526,2]
[353430552,1739824273702,-1329.95,0.0001526,2]
[353430553,1739824273711,-500.0,0.0001526,2]
[353430554,1739824273720,-552.86,0.0001526,2]
[353430555,1739824273730,-158.28756422,0.00015292,2]
[353430556,1739824273739,-1517.64,0.000153,2]
[353430557,1739824273748,-500.0,0.00015313,2]
[353430558,1739824273758,-795.398462,0.00015339,2]
[353430559,1739824273767,-816.26,0.00015339,2]
[353430560,1739824273776,-591.42,0.00015339,2]
[353430561,1739824273786,-732.62,0.00015339,2]
[353430562,1739824273795,-567.58,0.00015339,2]
[353430563,1739824273804,-670.65,0.00015339,2]
[353430564,1739824273814,-876.32,0.00015339,2]
[353430565,1739824273823,-548.070799,0.00015339,2]
[353430566,1739824273833,-975.56,0.00015339,2]
[353430567,1739824273842,-500.0,0.00015339,2]
[353430568,1739824273852,-513.1,0.00015339,2]
[353430569,1739824273861,-2432.3,0.00015339,2]
[353430570,1739824273870,-617.48,0.00015339,2]
[353430571,1739824273880,-1151.84,0.00015339,2]
[353430572,1739824273890,-651.63,0.00015339,2]
[353430573,1739824273900,-1462.81,0.00015339,2]
[353430574,1739824273909,-934.89,0.00015339,2]
[353430575,1739824273919,-566.1,0.00015339,2]
[353430576,1739824273928,-985.31,0.00015339,2]
[353430577,1739824273937,-628.67,0.00015339,2]
[353430578,1739824273947,-500.0,0.00015339,2]
[353430579,1739824273955,-890.88,0.00015339,2]
[353430580,1739824273965,-1205.15026184,0.0001534,5]
[353430581,1739824273974,-500.0,0.0001534,2]
[353430582,1739824273984,-500.0,0.0001534,2]
[353430583,1739824273994,-500.0,0.0001534,2]
[353430584,1739824274003,-567.94,0.0001534,2]
[353430585,1739824274013,-466.86,0.0001534,2]
[353430586,1739824274022,-647.34,0.0001534,2]
[353430587,1739824274032,-983.87,0.0001534,2]
[353430588,1739824274041,-685.53,0.0001534,2]
[353430589,1739824274050,-743.63,0.0001534,2]
[353430590,1739824274060,-670.47,0.0001534,2]
[353430591,1739824274069,-654.54,0.0001534,2]
[353430592,1739824274079,-971.37,0.0001534,2]
[353430593,1739824274088,-1065.05,0.0001534,2]
[353430594,1739824274098,-1119.09,0.0001534,2]
[353430595,1739824274113,-500.0,0.0001534,2]
[353430596,1739824274126,-1251.34,0.0001534,2]
[353430597,1739824274136,-755.73,0.0001534,2]
[353430598,1739824274145,-980.53,0.0001534,2]
[353430599,1739824274155,-842.52,0.0001534,2]
[353430600,1739824274165,-500.0,0.0001534,2]
[353430601,1739824274175,-500.0,0.0001534,2]
[353430602,1739824274184,-500.0,0.0001534,2]
[353430603,1739824274194,-500.0,0.0001534,2]
[353430604,1739824274203,-504.57,0.00015341,2]
[353430605,1739824274217,-271.33675806,0.00015341,2]
[353430606,1739824274227,-500.0,0.00015341,2]
[353430607,1739824274236,-566.08,0.00015341,2]
[353430608,1739824274246,-661.86,0.00015341,2]
[353430609,1739824274256,-500.0,0.00015341,2]
[353430610,1739824274266,-631.5,0.00015341,2]
[353430611,1739824274276,-500.0,0.00015342,2]
[353430612,1739824274286,-590.81,0.00015342,2]
[353430613,1739824274295,-577.67,0.00015342,2]
[353430614,1739824274305,-1001.9,0.00015342,2]
[353430615,1739824274314,-587.36,0.00015342,2]
[353430616,1739824274324,-1071.78,0.00015342,2]
[353430617,1739824274333,-977.2,0.00015342,2]
[353430618,1739824274342,-909.38,0.00015342,2]
[353430619,1739824274352,-773.35,0.00015342,2]
[353430620,1739824274361,-500.0,0.00015342,2]
[353430621,1739824274374,-599.87,0.00015342,2]
[353430622,1739824274384,-1111.81,0.00015342,2]
[353430623,1739824274395,-1025.81,0.00015342,2]
[353430624,1739824274405,-683.66,0.00015342,2]
[353430625,1739824274414,-1058.99,0.00015342,2]
[353430626,1739824274423,-765.72,0.00015342,2]
[353430627,1739824274433,-1329.95,0.00015342,2]
[353430628,1739824274443,-500.0,0.00015342,2]
[353430629,1739824274453,-552.86,0.00015342,2]
[353430630,1739824274463,-1997.0,0.00015351,2]
[353430631,1739824274472,-15988.8562794,0.000154,2]
[353430632,1739824274481,-486.23236692,0.000154,2]
[353430633,1739824274491,-320.47580011,0.00015407,2]
[353430634,1739824274500,-500.0,0.00015413,2]
[353430635,1739824274509,-795.398462,0.00015421,2]
[353430636,1739824274518,-816.26,0.00015421,2]
[353430637,1739824274527,-591.42,0.00015421,2]
[353430638,1739824274537,-732.62,0.00015421,2]
[353430639,1739824274546,-567.58,0.00015421,2]
[353430640,1739824274556,-670.65,0.00015421,2]
[353430641,1739824274566,-876.32,0.00015421,2]
[353430642,1739824274575,-548.070799,0.00015421,2]
[353430643,1739824274584,-975.56,0.00015421,2]
[353430644,1739824274594,-500.0,0.00015421,2]
[353430645,1739824274603,-513.1,0.00015421,2]
[353430646,1739824274613,-2432.3,0.00015421,2]
[353430647,1739824274622,-617.48,0.00015421,2]
[353430648,1739824274632,-1151.84,0.00015421,2]
[353430649,1739824274641,-651.63,0.00015421,2]
[353430650,1739824274651,-1462.81,0.00015421,2]
[353430651,1739824274660,-934.89,0.00015421,2]
[353430652,1739824274670,-566.1,0.00015421,2]
[353430653,1739824274679,-985.31,0.00015421,2]
[353430654,1739824274689,-628.67,0.00015421,2]
[353430655,1739824274699,-328.76761059,0.00015421,2]
[353430656,1739824274709,-890.88,0.00015421,2]
[353430657,1739824274718,-500.0,0.00015422,2]
[353430658,1739824274728,-387.12620645,0.00015422,2]
[353430659,1739824274737,-500.0,0.00015422,2]
[353430660,1739824274747,-567.94,0.00015422,2]
[353430661,1739824274757,-647.34,0.00015422,2]
[353430662,1739824274767,-983.87,0.00015422,2]
[353430663,1739824274776,-685.53,0.00015422,2]
[353430664,1739824274787,-743.63,0.00015422,2]
[353430665,1739824274796,-670.47,0.00015422,2]
[353430666,1739824274806,-654.54,0.00015422,2]
[353430667,1739824274815,-971.37,0.00015422,2]
[353430668,1739824274825,-1065.05,0.00015422,2]
[353430669,1739824274835,-1119.09,0.00015422,2]
[353430670,1739824274844,-500.0,0.00015422,2]
[353430671,1739824274854,-1251.34,0.00015422,2]
[353430672,1739824274863,-755.73,0.00015422,2]
[353430673,1739824274872,-980.53,0.00015422,2]
[353430674,1739824274882,-842.52,0.00015422,2]
[353430675,1739824274892,-500.0,0.00015422,2]
[353430676,1739824274901,-500.0,0.00015422,2]
[353430677,1739824274910,-485.74034314,0.00015422,2]
[353430678,1739824274920,-500.0,0.00015422,2]
[353430679,1739824274930,-500.0,0.00015423,2]
[353430680,1739824274939,-566.08,0.00015423,2]
[353430681,1739824274950,-661.86,0.00015423,2]
[353430682,1739824274959,-500.0,0.00015423,2]
[353430683,1739824274968,-631.5,0.00015423,2]
[353430684,1739824274978,-332.43341844,0.00015424,2]
[353430685,1739824274987,-590.81,0.00015424,2]
[353430686,1739824274997,-577.67,0.00015424,2]
[353430687,1739824275006,-1001.9,0.00015424,2]
[353430688,1739824275016,-587.36,0.00015424,2]
[353430689,1739824275025,-1071.78,0.00015424,2]
[353430690,1739824275034,-977.2,0.00015424,2]
[353430691,1739824275043,-909.38,0.00015424,2]
[353430692,1739824275053,-773.35,0.00015424,2]
[353430693,1739824275062,-500.0,0.00015424,2]
[353430694,1739824275072,-599.87,0.00015424,2]
[353430695,1739824275083,-1111.81,0.00015424,2]
[353430696,1739824275093,-1025.81,0.00015424,2]
[353430697,1739824275103,-683.66,0.00015424,2]
[353430698,1739824275111,-1058.99,0.00015424,2]
[353430699,1739824275121,-765.72,0.00015424,2]
[353430700,1739824275129,-1329.95,0.00015424,2]
[353430701,1739824275140,-500.0,0.00015424,2]
[353430702,1739824275149,-552.86,0.00015424,2]
[353430703,1739824275158,-2000.0,0.00015432,5]
[353430704,1739824275167,-700.0,0.00015448,2]
[353430705,1739824275176,-504.57,0.00015478,2]
[353430706,1739824275186,-150.0,0.00015501,2]
[353430707,1739824275195,-795.398462,0.00015503,2]
[353430708,1739824275204,-816.26,0.00015503,2]
[353430709,1739824275213,-591.42,0.00015503,2]
[353430710,1739824275223,-732.62,0.00015503,2]
[353430711,1739824275233,-567.58,0.00015503,2]
[353430712,1739824275242,-670.65,0.00015503,2]
[353430713,1739824275251,-876.32,0.00015503,2]
[353430714,1739824275260,-548.070799,0.00015503,2]
[353430715,1739824275269,-975.56,0.00015503,2]
[353430716,1739824275278,-500.0,0.00015503,2]
[353430717,1739824275287,-513.1,0.00015503,2]
[353430718,1739824275296,-2432.3,0.00015503,2]
[353430719,1739824275306,-617.48,0.00015503,2]
[353430720,1739824275315,-1151.84,0.00015503,2]
[353430721,1739824275324,-651.63,0.00015503,2]
[353430722,1739824275333,-1462.81,0.00015503,2]
[353430723,1739824275342,-934.89,0.00015503,2]
[353430724,1739824275352,-566.1,0.00015503,2]
[353430725,1739824275361,-985.31,0.00015503,2]
[353430726,1739824275373,-628.67,0.00015503,2]
[353430727,1739824275382,-890.88,0.00015503,2]
[353430728,1739824275393,-180.23423461,0.00015504,2]
[353430729,1739824275402,-539.32,0.00015504,2]
[353430730,1739824275413,-567.94,0.00015504,2]
[353430731,1739824275422,-647.34,0.00015504,2]
[353430732,1739824275432,-983.87,0.00015504,2]
[353430733,1739824275441,-685.53,0.00015504,2]
[353430734,1739824275450,-743.63,0.00015504,2]
[353430735,1739824275459,-670.47,0.00015504,2]
[353430736,1739824275468,-654.54,0.00015504,2]
[353430737,1739824275478,-971.37,0.00015504,2]
[353430738,1739824275487,-1065.05,0.00015504,2]
[353430739,1739824275496,-1119.09,0.00015504,2]
[353430740,1739824275505,-500.0,0.00015504,2]
[353430741,1739824275515,-1251.34,0.00015504,2]
[353430742,1739824275524,-755.73,0.00015504,2]
[353430743,1739824275533,-980.53,0.00015504,2]
[353430744,1739824275542,-842.52,0.00015504,2]
[353430745,1739824275551,-500.0,0.00015504,2]
[353430746,1739824275561,-381.57973208,0.00015504,2]
[353430747,1739824275570,-500.0,0.00015504,2]
[353430748,1739824275579,-349.81815845,0.00015505,2]
[353430749,1739824275588,-566.08,0.00015505,2]
[353430750,1739824275597,-661.86,0.00015505,2]
[353430751,1739824275607,-295.56215452,0.00015505,2]
[353430752,1739824275616,-631.5,0.00015505,2]
[353430753,1739824275624,-590.81,0.00015506,2]
[353430754,1739824275633,-577.67,0.00015506,2]
[353430755,1739824275644,-1001.9,0.00015506,2]
[353430756,1739824275653,-587.36,0.00015506,2]
[353430757,1739824275662,-1071.78,0.00015506,2]
[353430758,1739824275672,-977.2,0.00015506,2]
[353430759,1739824275681,-909.38,0.00015506,2]
[353430760,1739824275690,-773.35,0.00015506,2]
[353430761,1739824275699,-220.924193,0.00015506,2]
[353430762,1739824275708,-599.87,0.00015506,2]
[353430763,1739824275717,-1111.81,0.00015506,2]
[353430764,1739824275867,-1025.81,0.00015506,2]
[353430765,1739824275877,-683.66,0.00015506,2]
[353430766,1739824275886,-1058.99,0.00015506,2]
[353430767,1739824275895,-765.72,0.00015506,2]
[353430768,1739824275904,-1329.95,0.00015506,2]
[353430769,1739824275913,-543.95250448,0.00015506,2]
[353430770,1739824275923,-552.86,0.00015506,2]
[353430771,1739824275932,-500.0,0.00015513,2]
[353430772,1739824275942,-1000.0,0.00015521,2]
[353430773,1739824275951,-1001.26090702,0.00015521,2]
[353430774,1739824275960,-500.27840144,0.00015521,2]
[353430775,1739824275970,-1000.0,0.00015521,2]
[353430776,1739824275979,-500.1570549,0.00015521,2]
[353430777,1739824275988,-567.94,0.00015586,2]
[353430778,1739824275998,-647.34,0.00015586,2]
[353430779,1739824276007,-983.87,0.00015586,2]
[353430780,1739824276017,-685.53,0.00015586,2]
[353430781,1739824276026,-795.398462,0.00015586,2]
[353430782,1739824276035,-816.26,0.00015586,2]
[353430783,1739824276045,-743.63,0.00015586,2]
[353430784,1739824276055,-670.47,0.00015586,2]
[353430785,1739824276064,-591.42,0.00015586,2]
[353430786,1739824276073,-654.54,0.00015586,2]
[353430787,1739824276083,-732.62,0.00015586,2]
[353430788,1739824276092,-567.58,0.00015586,2]
[353430789,1739824276102,-971.37,0.00015586,2]
[353430790,1739824276111,-1065.05,0.00015586,2]
[353430791,1739824276120,-670.65,0.00015586,2]
[353430792,1739824276130,-876.32,0.00015586,2]
[353430793,1739824276141,-548.070799,0.00015586,2]
[353430794,1739824276151,-359.12113273,0.00015586,2]
[353430795,1739824276160,-1119.09,0.00015586,2]
[353430796,1739824276170,-975.56,0.00015586,2]
[353430797,1739824276179,-576.66,0.00015586,2]
[353430798,1739824276188,-1251.34,0.00015586,2]
[353430799,1739824276198,-513.1,0.00015586,2]
[353430800,1739824276207,-755.73,0.00015586,2]
[353430801,1739824276216,-2432.3,0.00015586,2]
[353430802,1739824276225,-617.48,0.00015586,2]
[353430803,1739824276235,-980.53,0.00015586,2]
[353430804,1739824276245,-1151.84,0.00015586,2]
[353430805,1739824276255,-651.63,0.00015586,2]
[353430806,1739824276264,-1462.81,0.00015586,2]
[353430807,1739824276273,-842.52,0.00015586,2]
[353430808,1739824276282,-500.0,0.00015586,2]
[353430809,1739824276292,-934.89,0.00015586,2]
[353430810,1739824276301,-566.1,0.00015586,2]
[353430811,1739824276311,-985.31,0.00015586,2]
[353430812,1739824276320,-628.67,0.00015586,2]
[353430813,1739824276329,-890.88,0.00015586,2]
[353430814,1739824276338,-500.0,0.00015586,2]
[353430815,1739824276348,-566.08,0.00015587,2]
[353430816,1739824276358,-661.86,0.00015587,2]
[353430817,1739824276372,-631.5,0.00015587,2]
[353430818,1739824276381,-591.04746871,0.00015589,2]
[353430819,1739824276392,-577.74326155,0.00015589,2]
[353430820,1739824276402,-1002.1,0.00015589,2]
[353430821,1739824276413,-587.57901331,0.00015589,2]
[353430822,1739824276422,-1071.94956538,0.00015589,2]
[353430823,1739824276432,-977.2042962,0.00015589,2]
[353430824,1739824276442,-909.48844523,0.00015589,2]
[353430825,1739824276453,-773.54326465,0.00015589,2]
[353430826,1739824276462,-600.05,0.00015589,2]
[353430827,1739824276472,-1111.90248643,0.00015589,2]
[353430828,1739824276481,-1025.93160738,0.00015589,2]
[353430829,1739824276490,-683.7291109,0.00015589,2]
[353430830,1739824276499,-1059.16129428,0.00015589,2]
[353430831,1739824276508,-765.84138245,0.00015589,2]
[353430832,1739824276517,-1330.11772177,0.00015589,2]
[353430833,1739824276527,-552.96108386,0.00015589,2]
[353430834,1739824276536,-699.90607,0.000156,2]
[353430835,1739824276550,-3705.00986,0.000156,2]
[353430836,1739824276559,-500.0,0.00015613,2]
[353430837,1739824276568,-504.57,0.00015615,2]
[353430838,1739824276578,-795.398462,0.00015668,2]
[353430839,1739824276588,-816.36102459,0.00015668,2]
[353430840,1739824276598,-591.53435886,0.00015668,2]
[353430841,1739824276607,-732.64831574,0.00015668,2]
[353430842,1739824276617,-567.77139798,0.00015668,2]
[353430843,1739824276626,-670.65021183,0.00015668,2]
[353430844,1739824276636,-876.42470859,0.00015668,2]
[353430845,1739824276646,-548.070799,0.00015668,2]
[353430846,1739824276656,-975.75304177,0.00015668,2]
[353430847,1739824276666,-513.30134366,0.00015668,2]
[353430848,1739824276676,-2432.40572943,0.00015668,2]
[353430849,1739824276685,-617.53,0.00015668,2]
[353430850,1739824276695,-1152.07098693,0.00015668,2]
[353430851,1739824276704,-651.68,0.00015668,2]
[353430852,1739824276714,-1462.97500837,0.00015668,2]
[353430853,1739824276723,-935.02908072,0.00015668,2]
[353430854,1739824276733,-566.32069988,0.00015668,2]
[353430855,1739824276743,-985.39474733,0.00015668,2]
[353430856,1739824276752,-628.8945823,0.00015668,2]
[353430857,1739824276761,-891.09508728,0.00015668,2]
[353430858,1739824276771,-568.02675118,0.00015669,2]
[353430859,1739824276780,-647.55381656,0.00015669,2]
[353430860,1739824276790,-983.87346448,0.00015669,2]
[353430861,1739824276799,-685.7007583,0.00015669,2]
[353430862,1739824276809,-743.74471738,0.00015669,2]
[353430863,1739824276819,-670.60733623,0.00015669,2]
[353430864,1739824276828,-654.65826419,0.00015669,2]
[353430865,1739824276838,-971.39834685,0.00015669,2]
[353430866,1739824276849,-1065.24864814,0.00015669,2]
[353430867,1739824276858,-1119.17812171,0.00015669,2]
[353430868,1739824276868,-1251.41054724,0.00015669,2]
[353430869,1739824276877,-755.95834017,0.00015669,2]
[353430870,1739824276888,-980.56236553,0.00015669,2]
[353430871,1739824276898,-842.54394867,0.00015669,2]
[353430872,1739824276907,-245.00974957,0.00015669,2]
[353430873,1739824276916,-235.82602734,0.00015669,2]
[353430874,1739824276926,-566.13992671,0.0001567,2]
[353430875,1739824276937,-661.91558361,0.0001567,2]
[353430876,1739824276947,-631.71,0.0001567,2]
[353430877,1739824276957,-451.21426152,0.00015681,2]